Cogmind - Beta 15 *** ADVENTURER MODE // 2025.05.07 @ 08:24:18 Player: Rotpup_ Result: Destroyed by Y-45 Defender with Heavy Assault Rifle Performance ------------- Evolutions (0) 0 Regions Visited (2) 400 Robots Destroyed (19) 95 Value Destroyed (494) 494 Prototype IDs (0) 0 Alien Tech Used (0) 0 Bonus (0) 0 TOTAL SCORE: 989 Bonus ------- None Cogmind --------- Core Integrity 0/250 Matter 223/300 Energy 100/100 System Corruption 0% Temperature Cool (0) Movement Core (350) Ox6 Location -10/Mines Parts ------- > --- POWER (1) -------- (None) > --- PROPULSION (2) --- (None) > --- UTILITY (2) ------ Large Storage Unit Seismic Detector > --- WEAPON (2) ------- (None) > --- INVENTORY (15) --- Hover Unit Hover Unit Heat Sink Improved Heat Sink Signal Interpreter ECM Suite Light Armor Plating Peak State ------------ > --- POWER ------------ Light Ion Engine > --- PROPULSION ------- Light Treads Light Treads > --- UTILITY ---------- Large Storage Unit Seismic Detector > --- WEAPON ----------- EM Pulse Gun EM Pulse Gun > --- INVENTORY -------- Light Ion Engine Light Treads Hover Unit Heat Sink Improved Heat Sink Signal Interpreter Light Armor Plating Grenade Launcher [Rating: 8] Favorites ----------- Power Light Ion Engine Engine Light Ion Engine Propulsion Light Treads Treads Light Treads Utility Seismic Detector Device Seismic Detector Storage Large Storage Unit Weapon EM Pulse Gun Energy Gun EM Pulse Gun Ballistic Gun Assault Rifle Launcher Grenade Launcher Build | -11 -10 -10 ------- Run | Yrd Mat Min Slots Evolved . | . . . Power . | . . . Propulsion . | . . . Utility . | . . . Weapon . | . . . Parts Attached 13 | 8 1 4 Power 2 | 1 . 1 Engine 2 | 1 . 1 Core . | . . . Reactor . | . . . Propulsion 3 | 2 . 1 Treads 3 | 2 . 1 Leg . | . . . Wheel . | . . . Hover . | . . . Flight . | . . . Utility 3 | 2 1 . Device 1 | 1 . . Storage 2 | 1 1 . Processor . | . . . Hackware . | . . . Protection . | . . . Artifact . | . . . Weapon 5 | 3 . 2 Energy Gun 3 | 2 . 1 Energy Cannon . | . . . Ballistic Gun 1 | 1 . . Ballistic Cannon . | . . . Launcher 1 | . . 1 Special Weapon . | . . . Impact Weapon . | . . . Slashing Weapon . | . . . Piercing Weapon . | . . . Special Melee Weapon . | . . . Unidentified Prototypes . | . . . Parts Lost 9 | . . 9 Power 2 | . . 2 Propulsion 3 | . . 3 Utility . | . . . Weapon 4 | . . 4 Highest Loss Streak 4 | . . 4 To Critical Strikes . | . . . Average Backups 6 | 1 5 7 Power . | . 1 . Propulsion 1 | . . 2 Utility 3 | . 2 5 Weapon . | . 1 . Tool/Special . | . . . Unused Backups 7 | . . 7 Power . | . . . Propulsion 2 | . . 2 Utility 5 | . . 5 Weapon . | . . . Tool/Special . | . . . Average Slot Usage (%) 85 | . 100 75 Engine 13 | . 14 12 Treads 23 | . 28 19 Device 14 | . 14 14 Storage 14 | . 14 14 Energy Gun 18 | . 28 11 Launcher 1 | . . 2 Peak Build Rating 8 | 7 8 8 Average Rating 6 | 4 7 5 On Entrance 5 | . 7 8 Naked Turns . | . . . Heaviest Build 28 | 13 28 28 Greatest Support 40 | 40 40 40 Greatest Overweight (x) 6 | 2 . 6 Average Overweight (x) . | . . . Largest Inventory Capacity 15 | 8 15 15 Average Capacity 13 | 7 12 15 Most Carried 10 | 3 9 10 Average Carried 6 | 1 5 7 Final Capacity 15 | 8 15 15 Final Carried 9 | 2 9 7 Class Distribution -------------------- 100% | Mutant Dominant Class ---------------- Mutant | -10/Materials Mutant | -10/Mines Resources | -11 -10 -10 ----------- Run | Yrd Mat Min Matter Collected 353 | 211 79 63 Remotely . | . . . Salvage Created 691 | 155 372 164 Parts 43 | 13 20 10 Haulers Intercepted 1 | . 1 . Recyclers Shooed 1 | 1 . . Parts Field Recycled . | . . . Retrieved Matter . | . . . Parts Self-Destructed . | . . . Prevented . | . . . Kills | -11 -10 -10 ------- Run | Yrd Mat Min Combat Hostiles Destroyed 11 | . 6 5 Guns 5 | . 3 2 AOE 5 | . 2 3 Classes Destroyed 6 | 2 3 1 Tunneler 3 | 3 . . Hauler 1 | . 1 . Recycler 1 | 1 . . Mechanic 1 | . . 1 Watcher 2 | . 2 . Grunt 11 | . 6 5 Best Kill Streak 5 | 4 5 5 Combat Bots Only 4 | . 2 4 Max Kills in Single Turn 2 | 1 2 2 Gunslinging . | . . . Exploded 2 | . 1 2 Melee . | . . . Uniques/NPCs Destroyed . | . . . Combat | -11 -10 -10 -------- Run | Yrd Mat Min Hostile Shots Fired 121 | . 25 96 Missed 41 | . 11 30 Hits 80 | . 14 66 Projectile 80 | . 14 66 Critical Strikes 5 | . . 5 Damage Taken 999 | . 116 883 Core 260 | . 26 234 Absorbed by Shields . | . . . Ignored by Resistances 297 | . 36 261 Core Remaining (%) 100 | 100 . . Volleys Fired 54 | 5 18 31 Largest 2 | 2 2 2 Hottest 80 | 80 80 80 Shots Fired 81 | 10 36 35 Gun 69 | 10 36 23 Cannon . | . . . Launcher 12 | . . 12 Special . | . . . Kinetic . | . . . Thermal 14 | . . 14 Explosive 12 | . . 12 Electromagnetic 55 | 10 36 9 Robot Hit Streak 13 | 5 9 13 Robot Miss Streak 2 | 1 2 1 Penetration Max . | . . . Secondary Targets 3 | . 3 . Max Gunslinging Chain 1 | . 1 . Shots Hit Robots 63 | 7 28 28 Core Hits 38 | 5 13 20 Critical Kills . | . . . Critical Parts Destroyed . | . . . Critical Strikes 2 | 2 . . Corrupt 2 | 2 . . Melee Attacks . | . . . Impact . | . . . Slashing . | . . . Piercing . | . . . Sneak Attacks . | . . . Combat Hostiles . | . . . Follow-up Attacks . | . . . Damage Inflicted 1682 | 110 695 877 Guns 762 | 110 403 249 Cannons . | . . . Explosions 920 | . 292 628 Melee . | . . . Ramming . | . . . Kinetic . | . . . Thermal 222 | . 33 189 Explosive 841 | . 259 582 Electromagnetic 619 | 110 403 106 Impact . | . . . Slashing . | . . . Piercing . | . . . Highest Corruption . | . . . Average Corruption . | . . . Corruption Purged . | . . . Corruption Blocked . | . . . Overload Shots . | . . . Overflow Damage 6 | . . 6 Projectiles . | . . . Explosions 6 | . . 6 Melee . | . . . Knockbacks . | . . . Impact . | . . . Kinetic . | . . . Secondary . | . . . Self-Inflicted Damage 167 | . . 167 Shots 9 | . . 9 Rammed . | . . . Targets Rammed . | . . . Kicked . | . . . Crushed . | . . . Highest Temperature 130 | 54 130 114 Average Temperature 42 | 25 52 35 Received Heat Transfer 624 | . 84 540 Siege Activations . | . . . Martial Activations . | . . . Shielding Activations . | . . . Robots Disrupted . | . . . Combat Hostiles . | . . . Robots Corrupted 1 | . 1 . Combat Hostiles 1 | . 1 . Parts Fried 3 | . 3 . Impact Corruptions . | . . . Robots Melted . | . . . Combat Hostiles . | . . . Parts Melted . | . . . Heat Transferred 375 | . . 375 Parts Sabotaged . | . . . Parts Stolen . | . . . Parts Stripped . | . . . Power Chain Reactions 1 | . 1 . Alert | -11 -10 -10 ------- Run | Yrd Mat Min Maximum Alert Level . | . . . Low Security (%) 100 | 100 100 100 Level 1 . | . . . Level 2 . | . . . Level 3 . | . . . Level 4 . | . . . Level 5 . | . . . High Security . | . . . Max Security . | . . . Peak Influence 169 | 10 169 91 Initial 36 | . . 36 Average 38 | 1 66 25 Influence Increases 458 | 20 232 206 Destroy 0b10 Robot/C 220 | . 120 100 Destroy 0b10 Robot/NC 40 | 20 15 5 Destroy Leader 36 | . 26 10 Successful Hack 15 | . 15 . Disable Machine 18 | . 9 9 Destroy Structure 69 | . 32 37 Lose Combat Pursuer 60 | . 15 45 Influence Decreases 458 | 20 120 318 Entered New Map 76 | . . 76 Time Decay 336 | 20 120 196 Lost Part 30 | . . 30 Lost Ally 16 | . . 16 Squads Dispatched 2 | . 1 1 Investigation 1 | . 1 . Extermination . | . . . Reinforcement . | . . . Assault 1 | . . 1 Garrison . | . . . Intercept . | . . . Searches Triggered . | . . . Construction Impeded . | . . . Haulers Reinforced . | . . . Active Scanning Responses . | . . . Cargo Convoy Interrupts . | . . . Stealth | -11 -10 -10 --------- Run | Yrd Mat Min Distress Signals . | . . . Communications Jammed . | . . . Distress Signals . | . . . Times Spotted 20 | . 9 11 Peak Tracking Total 4 | . 4 4 Tactical Retreats 4 | . 1 3 Traps | -11 -10 -10 ------- Run | Yrd Mat Min Traps Triggered . | . . . Indirectly . | . . . Trap Hack Attempts . | . . . Triggered . | . . . Disarmed . | . . . Reprogrammed . | . . . Reused . | . . . Traps Extracted . | . . . Installed . | . . . Triggered . | . . . Objects Rigged 2 | . 2 . Exploded 1 | . 1 . Machines | -11 -10 -10 ---------- Run | Yrd Mat Min Machines Disabled 2 | . 1 1 Max in Single Turn 1 | . 1 1 Machines Repaired . | . . . Machines Dismantled . | . . . Machines Sabotaged . | . . . Overloaded Fab Kills . | . . . Hacking | -11 -10 -10 --------- Run | Yrd Mat Min Machines Accessed 3 | . 3 . Terminals 3 | . 3 . Fabricators . | . . . Repair Stations . | . . . Recycling Units . | . . . Scanalyzers . | . . . Garrison Access . | . . . Total Hacks 11 | . 11 . Successful 6 | . 6 . Failed 5 | . 5 . Catastrophic . | . . . Database Lockouts . | . . . Manual 9 | . 9 . Terminals 11 | . 11 . Fabricators . | . . . Repair Stations . | . . . Recycling Units . | . . . Scanalyzers . | . . . Garrison Access . | . . . Terminal Hacks 2 | . 2 . Branch Access Points 1 | . 1 . Locate Traps 1 | . 1 . Fabricator Hacks . | . . . Repair Station Hacks . | . . . Recycling Unit Hacks . | . . . Scanalyzer . | . . . Garrison Access Hacks . | . . . Unauthorized Hacks 4 | . 4 . Terminals 4 | . 4 . Botnet 3 | . 3 . Detonate 1 | . 1 . Fabricators . | . . . Repair Stations . | . . . Recycling Units . | . . . Scanalyzers . | . . . Garrison Access . | . . . Data Cores Recovered . | . . . Used . | . . . Hacking Detections 2 | . 2 . Full Trace Events . | . . . Feedback Events . | . . . Feedback Blocked . | . . . Robot Schematics Acquired . | . . . Robots Built . | . . . Authchips . | . . . Time . | . . . Total Robot Build Rating . | . . . Part Schematics Acquired . | . . . Parts Built . | . . . Authchips . | . . . Time . | . . . Total Part Build Rating . | . . . Parts Repaired . | . . . Time . | . . . Parts Recycled . | . . . Recycled Matter . | . . . Retrieved Matter . | . . . Retrieved Components . | . . . Parts Scanalyzed . | . . . Part Schematics Acquired . | . . . Parts Damaged . | . . . Bothacking | -11 -10 -10 ------------ Run | Yrd Mat Min Used RIF Installer . | . . . Robots Hacked . | . . . Non-combat . | . . . Combat . | . . . Robot Hacks Applied . | . . . Relay Couplers Released . | . . . Fabnet Peak Effective % . | . . . Robots Rewired . | . . . Allies Hacked . | . . . Hacks Repelled . | . . . Allies | -11 -10 -10 -------- Run | Yrd Mat Min Total Allies 1 | . . 1 Largest Group 1 | . . 1 Highest-Rated Group 31 | . . 31 Highest-Rated Ally 31 | . . 31 Total Orders . | . . . Ally Attacks 3 | . . 3 Total Damage 42 | . . 42 Kills . | . . . Allies Corrupted . | . . . Allies Melted 1 | . . 1 Intel | -11 -10 -10 ------- Run | Yrd Mat Min Active Infowar (turns) 1034 | 4 410 620 Seismic 1034 | 4 410 620 Robot Analysis Total . | . . . Derelict Logs Recovered 1 | . . 1 Drone Launches . | . . . Drone Recoveries . | . . . Exploration | -11 -10 -10 ------------- Run | Yrd Mat Min Turns Passed 1125 | 95 410 620 Spaces Moved 517 | 47 207 263 Core 18 | 16 . 2 Treads 499 | 31 207 261 Legs . | . . . Wheels . | . . . Hover . | . . . Flight . | . . . Fastest Speed 50 | 50 160 160 Average Speed 179 | 135 160 202 Slowest Speed 350 | 160 160 350 Overloaded Moves . | . . . Propulsion Burnouts . | . . . Robots Hopped . | . . . Potential Cave-ins . | . . . Cave-ins Triggered . | . . . Exploration Rate (%) 34 | 3 31 68 Regions Visited 2 Branch Regions 1 Pre-discovered Areas 1 | . . 1 Known Exits Taken 1 | . 1 . Unknown Exits Taken 1 | 1 . . Scrap Searched . | . . . Spaces Dug . | . . . Terrain Destroyed 87 | . 30 57 Melee . | . . . Projectile . | . . . AOE 87 | . 30 57 Terrain Rammed . | . . . Walls Destroyed . | . . . Machines Disabled . | . . . Actions | -11 -10 -10 --------- Run | Yrd Mat Min Total 635 | 68 250 317 Wait 28 | . 14 14 Move 515 | 46 206 263 Hop . | . . . Pick Up 21 | 9 9 3 Fast Attach . | . . . Attach 11 | 7 . 4 Detach . | . . . Swap 3 | 1 1 1 Drop 3 | . 2 1 Fire 54 | 5 18 31 Melee . | . . . Ram . | . . . Kick . | . . . Crush . | . . . Escape Stasis . | . . . Rewire . | . . . Trap . | . . . Miscellaneous . | . . . Route ------- -11/Scrapyard -10/Materials -10/Mines History --------- Turn | Location | Event 17 | -11/Scrapyard | Discovered new exit (range 16) 96 | -11/Scrapyard | Entered Materials 304 | -10/Materials | Build established: Mutant 438 | -10/Materials | Identified exit to Mines 506 | -10/Materials | Entered Mines 507 | -10/Mines | Met a Derelict testing a Signal Generator 514 | -10/Mines | Found Signal Generator 532 | -10/Mines | Found a damaged Exp. Sensor Array with a note attached 601 | -10/Mines | Lost 3 parts (1p2w) 637 | -10/Mines | Learned location of Zion (-7) 717 | -10/Mines | Core integrity fell below 50% 1121 | -10/Mines | Core integrity fell below 20% 1126 | -10/Mines | Destroyed by Y-45 Defender with Heavy Assault Rifle Last Messages --------------- 00691_ Plasma Injector explodes. 00692_ Grenade Launcher destroyed. 00693_ The unstable cave ceiling collapses. 00719_ K-01 Serf collects debris. 00743_ Critical hit (Burn: +37). 00750_ Acquired Sml. Laser. 00755_ Lgt. Treads destroyed. 00755_ G-34 Mercenary destroyed. 00765_ K-01 Serf collects debris. 00765_ Destroyed Particle Gun. 00769_ K-01 Serf collects debris. 00782_ Acquired 15 matter. 00785_ K-01 Serf collects debris. 00796_ Acquired Hover Unit. 00799_ K-01 Serf collects debris. 01108_ Lgt. Ion Engine destroyed. 01111_ Critical hit (Burn: +37). 01114_ Lgt. Treads destroyed. 01117_ Sml. Laser destroyed. 01120_ Lgt. Treads destroyed. Map ----- +----------------------------------------------------+ | | | | | | | | | | | | | | | | | | | | | | | | | | | | | | | | | | | ?????????????????????????????????????????????????? | | ?????????????????????????????????????????????????? | | ?????????????????????????????????????????????????? | | ??????????????????????????????####???????????????? | | ??????????????????????????#### #???????????????? | | ??????????????????????###?# #???????????????? | | ?????????????????????##" ## #????????????????? | | ?????????????????????#"" # #?????????????????? | | ?????????????????????#[[ @Y ##?????????????????? | | ?????????????????????#]! / #??????????????????? | | ?????????????????????#"" # ######### #???????? | | ?????????????????????##"Y## #???????? | | ??????????????????????###?### #???????? | | ???????????????????????????# ####### #???????? | | ???????????????????????????# ##???????????????? | | ???????????????????######??## ##??????????????? | | #################### ##??## ##?????????????? | | ##??# ##????????????? | | ################### ##?# #????????????? | | #??????????######## #?## #????????????? | | #????????# #### #????????????? | | #????????# ####### ## #????????????? | | #????????????????# #????????????? | | ##???????????????## #????????????? | | ####?????????????## ##????????????? | | #??????????????# ##?????????????? | | #??????????????## ## ##??????????????? | | ## #????#??????????###### #???????????????? | | #????# ??????????????### #???????????????? | | #????# ###?????????????## ??????????????? | | ###????# # #####??????????# ????????????? | | ######?# #??????????## ##### ??????????? | | ### # #???????????####????? ????????? | +----------------------------------------------------+ Best States ------------- Heat Dissipation 25 Energy Generation 10 Energy Capacity 125 Matter Stores 300 Matter Capacity 300 Sight Range 16 Terrain Scan Density 10 Resistance: KI 20 Resistance: TH 20 Resistance: EX 20 Resistance: EM 20 Resistance: I 20 Resistance: S 20 Resistance: P 20 Evasion (%) 50 Recoil Reduction 2 Offensive Hacking 10 Item Schematics ----------------- None Robot Schematics ------------------ None Fabricated ------------ Nothing Repaired ---------- Nothing Alien Tech Used ----------------- None Achievements -------------- None Challenges ------------ None Game ------ Seed FlakMetafiberWell Manual? 0 Play Time 00:08:38 Cumulative 19.7 hours Start 2025.05.07 @ 08:15:59 End 2025.05.07 @ 08:24:18 Sessions 1 Manual Loads 0 Difficulty Adventurer Special Mode None Game No. 41 Rogue 35 Adventurer 5 Explorer 1 Win Type - Total 0 Types 0/0/0/0/0/0/0/0/0/0 Lore% 10 Gallery% 24 Achievement% 23 Wizard Run 0 Options --------- Layout 1 ASCII 0 Keyboard 0 Movement Mouse Keybinds 0 Fullscreen 2 Font 24/Smallcaps Map View 50x35 Zoom Use 0% Tactical HUD 1 Map Filters NONE Filters NONE Steam 1 RUN: 2cce23aa-c8a1-44c4-bd7f-63e796f7bd4e